Cogmind - Beta 14 @@@ ROGUE MODE // 2025.03.25 @ 17:09:22 Player: ochotona_princeps Result: Destroyed by C-17 Slicer with Blade Saw Performance ------------- Evolutions (4) 2000 Regions Visited (15) 3000 Robots Destroyed (89) 445 Value Destroyed (2584) 2584 Prototype IDs (18) 360 Alien Tech Used (0) 0 Bonus (1294) 1294 TOTAL SCORE: 9683 Bonus ------- High Alert Combat Kills 247 Follower Combat Kills 1078 Friendly Fire -31 Cogmind --------- Core Integrity 0/850 Matter 5/300 Energy 98/100 System Corruption 5% Temperature Cool (0) Movement Core (50) Location -6/Hub_04(d) Parts ------- > --- POWER (1) -------- (None) > --- PROPULSION (4) --- (None) > --- UTILITY (8) ------ Improved Signal Interpreter Improved Melee Analysis Suite Hacking Suite Hacking Suite System Shield > --- WEAPON (2) ------- (None) > --- INVENTORY (5) ---- Improved Sensor Array Scatter Rocket Array Phasing Sabre Phasing Sabre Peak State ------------ > --- POWER ------------ Enhanced Nuclear Core > --- PROPULSION ------- Backup Propulsion I Backup Propulsion I Backup Propulsion I Improved Gravmag System > --- UTILITY ---------- Long-range Sensor Array Improved Signal Interpreter Improved Melee Analysis Suite Actuator Array Hacking Suite Hacking Suite System Shield System Shield > --- WEAPON ----------- Phasing Sabre Phasing Sabre > --- INVENTORY -------- VTOL Module VTOL Module Microactuators Scatter Rocket Array Phasing Sabre [Rating: 56] Favorites ----------- Power Makeshift Power Source Engine Makeshift Power Source Power Core Micro Nuclear Core Propulsion Xenon Bombardment Thruster Leg Aluminum Leg Wheel Wheel Hover Unit Backup Propulsion I Flight Unit Xenon Bombardment Thruster Utility Hacking Suite Device Actuator Array Processor Improved Signal Interpreter Hackware Hacking Suite Protection Hardened Medium Armor Plating Weapon Chainsword Energy Gun Backup Laser I Ballistic Gun Light Assault Rifle Ballistic Cannon Light Cannon Launcher Rocket Launcher Impact Weapon Powered Hammer Slashing Weapon Chainsword Build | -11 -10 -10 -9 -9 -8 -7 -7 -7 -7 -6 -6 -6 -6 -6 -6 ------- Run | Yrd Mat Min Mat Min Mat Fac Low Low Zio Pro Fac Ext Cet Arc Hub Slots Evolved 8 | . . . 2 . 2 2 . . . . 2 . . . . Power . | . . . . . . . . . . . . . . . . Propulsion 2 | . . . . . 1 . . . . . 1 . . . . Utility 6 | . . . 2 . 1 2 . . . . 1 . . . . Weapon . | . . . . . . . . . . . . . . . . Parts Attached 120 | 6 13 5 20 5 8 30 1 4 . 3 15 7 2 . 1 Power 17 | 1 2 1 1 . 1 4 . . . . 6 1 . . . Engine 12 | 1 2 1 1 . 1 3 . . . . 3 . . . . Core 5 | . . . . . . 1 . . . . 3 1 . . . Reactor . | . . . . . . . . . . . . . . . . Propulsion 28 | 2 6 1 2 3 1 6 . 2 . . 2 3 . . . Treads . | . . . . . . . . . . . . . . . . Leg 2 | . . . . 2 . . . . . . . . . . . Wheel 2 | 2 . . . . . . . . . . . . . . . Hover 9 | . 2 . . . 1 3 . . . . . 3 . . . Flight 15 | . 4 1 2 1 . 3 . 2 . . 2 . . . . Utility 32 | . 2 . 6 . 3 12 1 . . 1 5 1 1 . . Device 18 | . . . 3 . 2 7 . . . 1 4 1 . . . Storage . | . . . . . . . . . . . . . . . . Processor 8 | . 2 . 2 . . 2 1 . . . 1 . . . . Hackware 5 | . . . 1 . 1 2 . . . . . . 1 . . Protection 1 | . . . . . . 1 . . . . . . . . . Artifact . | . . . . . . . . . . . . . . . . Weapon 43 | 3 3 3 11 2 3 8 . 2 . 2 2 2 1 . 1 Energy Gun 2 | 1 . . 1 . . . . . . . . . . . . Energy Cannon . | . . . . . . . . . . . . . . . . Ballistic Gun 8 | 2 2 2 2 . . . . . . . . . . . . Ballistic Cannon 2 | . 1 . . 1 . . . . . . . . . . . Launcher 11 | . . 1 3 . 2 1 . 1 . 1 1 . 1 . . Special Weapon . | . . . . . . . . . . . . . . . . Impact Weapon 1 | . . . . . . 1 . . . . . . . . . Slashing Weapon 19 | . . . 5 1 1 6 . 1 . 1 1 2 . . 1 Piercing Weapon . | . . . . . . . . . . . . . . . . Special Melee Weapon . | . . . . . . . . . . . . . . . . Unidentified Prototypes 6 | . . . 2 . . 2 . . . . 2 . . . . Parts Lost 36 | . 4 1 2 3 5 3 . 2 . 1 7 1 4 1 2 Power 4 | . 1 . . . . 1 . . . . 2 . . . . Propulsion 23 | . 3 1 2 3 3 . . 2 . 1 3 1 4 . . Utility 8 | . . . . . 1 2 . . . . 2 . . 1 2 Weapon 1 | . . . . . 1 . . . . . . . . . . Highest Loss Streak 5 | . 3 1 1 2 5 2 . 2 . 1 3 1 4 1 2 To Critical Strikes 1 | . . . . . 1 . . . . . . . . . . Average Slot Usage (%) 86 | . 81 91 87 93 91 91 96 100 100 89 76 83 64 52 44 Engine 5 | . 12 14 11 11 7 5 . . . . 2 . . . . Core 2 | . . . . . . . 7 7 7 7 2 3 2 . . Hover 5 | . 2 . . . 21 3 . . . . . 16 4 . . Flight 13 | . 16 28 20 10 . 17 23 23 23 19 12 1 . . . Device 10 | . . . 20 22 24 13 7 7 7 5 7 11 8 5 . Processor 13 | . 14 28 14 11 9 7 11 15 15 15 17 13 13 13 13 Hackware 19 | . . . 4 11 9 25 30 30 30 30 26 26 30 33 31 Ballistic Gun 2 | . 21 9 1 . . . . . . . . . . . . Slashing Weapon 9 | . . . 14 21 16 12 15 15 15 8 5 8 2 . . Peak Build Rating 56 | 5 7 10 20 19 26 45 47 47 47 47 52 56 56 33 26 Average Rating 32 | 3 5 8 16 18 23 37 45 46 47 41 44 46 38 32 24 On Entrance 28 | . 5 7 10 19 19 13 43 47 47 47 40 37 56 33 26 Naked Turns . | . . . . . . . . . . . . . . . . Heaviest Build 25 | 9 10 8 11 11 16 25 17 17 17 17 12 23 23 2 . Greatest Support 28 | 20 20 8 14 26 26 27 18 18 18 18 18 28 28 3 3 Greatest Overweight (x) 2 | 2 1 . . 1 1 1 . . . 1 . 1 . . . Average Overweight (x) . | . . . . . . . . . . . . . . . . Largest Inventory Capacity 5 | 5 5 5 5 5 5 5 5 5 5 5 5 5 5 5 5 Average Capacity 5 | 5 5 5 5 5 5 5 5 5 5 5 5 5 5 5 5 Most Carried 5 | 1 5 5 5 4 5 5 5 5 4 5 5 5 5 5 5 Average Carried 4 | . 2 4 4 3 3 4 5 3 3 4 4 3 4 5 4 Final Capacity 5 | 5 5 5 5 5 5 5 5 5 5 5 5 5 5 5 5 Final Carried 5 | 1 5 4 4 3 5 5 5 3 4 4 5 4 5 5 4 Class Distribution -------------------- 34% | Hacker-Gladiator 28% | Hacker-Mutant 20% | Scavenger-Mutant 9% | Mutant 5% | Scavenger-Gladiator Dominant Class ---------------- Mutant | -10/Materials Mutant | -10/Mines Scavenger-Mutant | -9/Materials Scavenger-Mutant | -9/Mines Scavenger-Gladiator | -8/Materials Hacker-Gladiator | -7/Factory Hacker-Gladiator | -7/Lower Caves Hacker-Gladiator | -7/Lower Caves Hacker-Gladiator | -7/Zion Hacker-Mutant | -6/Proximity Caves Hacker-Mutant | -6/Factory Hacker-Gladiator | -6/Extension Hacker-Mutant | -6/Cetus Hacker-Mutant | -6/Archives Hacker-Mutant | -6/Hub_04(d) Resources | -11 -10 -10 -9 -9 -8 -7 -7 -7 -7 -6 -6 -6 -6 -6 -6 ----------- Run | Yrd Mat Min Mat Min Mat Fac Low Low Zio Pro Fac Ext Cet Arc Hub Matter Collected 1822 | 203 429 69 306 85 40 197 25 116 51 116 80 105 . . . Remotely . | . . . . . . . . . . . . . . . . Salvage Created 2477 | . 503 . 557 59 364 197 88 20 . 223 296 170 . . . Parts 163 | . 40 . 49 2 25 10 4 2 . 13 13 5 . . . Haulers Intercepted 11 | . 2 . 3 . 2 1 . . . . 2 1 . . . Recyclers Shooed 1 | . . . 1 . . . . . . . . . . . . Parts Field Recycled . | . . . . . . . . . . . . . . . . Retrieved Matter . | . . . . . . . . . . . . . . . . Parts Self-Destructed 15 | . . . . . . . 4 . . 11 . . . . . Prevented 3 | . . . . . . . . . . 3 . . . . . Kills | -11 -10 -10 -9 -9 -8 -7 -7 -7 -7 -6 -6 -6 -6 -6 -6 ------- Run | Yrd Mat Min Mat Min Mat Fac Low Low Zio Pro Fac Ext Cet Arc Hub Combat Hostiles Destroyed 69 | . 14 . 22 4 6 2 1 2 . 10 2 2 4 . . Melee 19 | . . . 5 3 2 2 1 . . 2 2 2 . . . Guns 13 | . 13 . . . . . . . . . . . . . . Cannons 2 | . 1 . . 1 . . . . . . . . . . . AOE 35 | . . . 17 . 4 . . 2 . 8 . . 4 . . Classes Destroyed 11 | . 5 . 2 1 . 2 1 . . . . . . . . Builder 1 | . . . . . . 1 . . . . . . . . . Hauler 11 | . 2 . 3 . 2 1 . . . . 2 1 . . . Minesweeper 1 | . . . . . . . 1 . . . . . . . . Operator 4 | . 2 . 1 . 1 . . . . . . . . . . Watcher 6 | . 3 . 1 . 1 1 . . . . . . . . . Swarmer 31 | . 9 . 9 . 2 . . 2 . 8 . 1 . . . Grunt 22 | . 5 . 11 1 2 . 1 . . 1 . 1 . . . Duelist 2 | . . . 1 . 1 . . . . . . . . . . Sentry 5 | . . . 1 . 1 1 . . . 1 1 . . . . Programmer 2 | . . . . . . 1 . . . . 1 . . . . Cetus Guard 4 | . . . . . . . . . . . . . 4 . . Assembled 3 | . . . . 3 . . . . . . . . . . . Best Kill Streak 18 | . 4 . 18 1 3 1 2 2 . 8 1 1 4 . . Combat Bots Only 17 | . 4 . 17 1 2 1 1 2 . 8 1 1 4 . . Max Kills in Single Turn 3 | . 1 . 3 1 2 1 1 1 . 3 1 1 3 . . Gunslinging . | . . . . . . . . . . . . . . . . Exploded 3 | . . . 3 . 2 . . 1 . 3 . . 3 . . Melee 1 | . . . 1 1 1 1 1 . . 1 1 1 . . . Uniques/NPCs Destroyed . | . . . . . . . . . . . . . . . . Combat | -11 -10 -10 -9 -9 -8 -7 -7 -7 -7 -6 -6 -6 -6 -6 -6 -------- Run | Yrd Mat Min Mat Min Mat Fac Low Low Zio Pro Fac Ext Cet Arc Hub Hostile Shots Fired 570 | . 66 16 51 22 71 66 1 8 . 40 126 23 21 20 39 Missed 296 | . 27 11 23 3 33 45 1 5 . 17 84 14 9 7 17 Damage Taken 3749 | . 337 69 273 237 680 251 . 50 . 294 508 101 313 308 328 Core 1864 | . 105 24 142 126 400 37 . . . 162 193 49 53 280 293 Absorbed by Shields 11 | . . . . . . . . . . . . 11 . . . Regen/Repaired (Parts) 221 | . . . . . 41 70 . . . . 110 . . . . Core Remaining (%) 55 | 100 . 48 . 33 27 . . . . 71 . . . . . Volleys Fired 107 | . 73 2 9 5 3 . . 2 . 7 . . 6 . . Largest 2 | . 2 1 1 1 1 . . 1 . 1 . . 1 . . Hottest 57 | . 55 33 33 57 30 . . 36 . 36 . . 50 . . Shots Fired 147 | . 113 2 9 5 3 . . 2 . 7 . . 6 . . Gun 101 | . 101 . . . . . . . . . . . . . . Cannon 17 | . 12 . . 5 . . . . . . . . . . . Launcher 29 | . . 2 9 . 3 . . 2 . 7 . . 6 . . Special . | . . . . . . . . . . . . . . . . Kinetic 118 | . 113 . . 5 . . . . . . . . . . . Thermal . | . . . . . . . . . . . . . . . . Explosive 29 | . . 2 9 . 3 . . 2 . 7 . . 6 . . Electromagnetic . | . . . . . . . . . . . . . . . . Robot Hit Streak 10 | . 10 . . 1 3 . . . . 5 . . 5 . . Robot Miss Streak 5 | . 5 . 1 5 . . . . . 1 . . 5 . . Penetration Max . | . . . . . . . . . . . . . . . . Secondary Targets . | . . . . . . . . . . . . . . . . Shots Hit Robots 154 | . 65 . 18 9 10 13 2 1 . 11 11 10 4 . . Core Hits 189 | . 31 . 36 3 18 5 2 2 . 12 5 3 72 . . Critical Kills 1 | . . . . 1 . . . . . . . . . . . Critical Parts Destroyed 1 | . . . . . . 1 . . . . . . . . . Critical Strikes 9 | . . . . 1 . 2 . . . 1 2 3 . . . Destroy 1 | . . . . 1 . . . . . . . . . . . Smash 1 | . . . . . . 1 . . . . . . . . . Sever 7 | . . . . . . 1 . . . 1 2 3 . . . Melee Attacks 141 | . . . 30 16 21 24 2 4 4 8 20 12 . . . Impact 8 | . . . . . . 8 . . . . . . . . . Slashing 133 | . . . 30 16 21 16 2 4 4 8 20 12 . . . Piercing . | . . . . . . . . . . . . . . . . Sneak Attacks 22 | . . . 6 1 4 3 1 . . . 2 5 . . . Combat Hostiles 2 | . . . . . . 1 . . . . . 1 . . . Follow-up Attacks 12 | . . . 4 2 1 1 . 2 . . . 2 . . . Damage Inflicted 8349 | . 748 . 1952 395 959 584 116 227 . 982 548 666 1172 . . Guns 634 | . 634 . . . . . . . . . . . . . . Cannons 124 | . 114 . . 10 . . . . . . . . . . . Explosions 3610 | . . . 1084 . 507 . . 188 . 659 . . 1172 . . Melee 3958 | . . . 868 385 429 584 116 39 . 323 548 666 . . . Ramming 23 | . . . . . 23 . . . . . . . . . . Kinetic 758 | . 748 . . 10 . . . . . . . . . . . Thermal . | . . . . . . . . . . . . . . . . Explosive 3407 | . . . 1084 . 304 . . 188 . 659 . . 1172 . . Electromagnetic 203 | . . . . . 203 . . . . . . . . . . Impact 244 | . . . . . . 244 . . . . . . . . . Slashing 3714 | . . . 868 385 429 340 116 39 . 323 548 666 . . . Piercing . | . . . . . . . . . . . . . . . . Highest Corruption 5 | . 3 3 . . . . . . . . . . . . 5 Average Corruption 2 | . 1 3 . . . . . . . . . . . . 5 Corruption Purged . | . . . . . . . . . . . . . . . . Corruption Blocked . | . . . . . . . . . . . . . . . . Effects 12 | . 6 5 . . . . . . . . . . . . 1 Message Errors 5 | . 3 1 . . . . . . . . . . . . 1 Matter Fused 2 | . 1 1 . . . . . . . . . . . . . Heat Flow Errors 1 | . . 1 . . . . . . . . . . . . . Energy Discharges 2 | . 1 1 . . . . . . . . . . . . . Data Loss (minor) 1 | . 1 . . . . . . . . . . . . . . Data Loss (major) 1 | . . 1 . . . . . . . . . . . . . Overload Shots . | . . . . . . . . . . . . . . . . Overflow Damage 331 | . 3 . 36 90 1 111 . . . . . 90 . . . Projectiles 3 | . 3 . . . . . . . . . . . . . . Explosions 11 | . . . 10 . 1 . . . . . . . . . . Melee 317 | . . . 26 90 . 111 . . . . . 90 . . . Knockbacks 2 | . . . . . . 2 . . . . . . . . . Impact 2 | . . . . . . 2 . . . . . . . . . Kinetic . | . . . . . . . . . . . . . . . . Secondary . | . . . . . . . . . . . . . . . . Self-Inflicted Damage 55 | . . . . . 55 . . . . . . . . . . Shots 1 | . . . . . 1 . . . . . . . . . . Rammed 2 | . . . . . 2 . . . . . . . . . . Targets Rammed 2 | . . . . . 2 . . . . . . . . . . Kicked . | . . . . . . . . . . . . . . . . Crushed . | . . . . . . . . . . . . . . . . Highest Temperature 140 | . 20 140 17 130 13 . . . . . 1 . . . . Average Temperature 27 | . 6 70 8 66 10 . . . . . 1 . . . . Received Heat Transfer 741 | . 72 36 90 36 207 45 . . . 24 117 27 . 36 51 Siege Activations . | . . . . . . . . . . . . . . . . Robots Corrupted 1 | . . . . . . 1 . . . . . . . . . Combat Hostiles . | . . . . . . . . . . . . . . . . Parts Fried 2 | . . . . . 1 1 . . . . . . . . . Impact Corruptions 4 | . . . . . . 4 . . . . . . . . . Robots Melted . | . . . . . . . . . . . . . . . . Combat Hostiles . | . . . . . . . . . . . . . . . . Parts Melted 1 | . . . . . . . . . . 1 . . . . . Heat Transferred . | . . . . . . . . . . . . . . . . Parts Sabotaged . | . . . . . . . . . . . . . . . . Parts Stolen . | . . . . . . . . . . . . . . . . Parts Stripped . | . . . . . . . . . . . . . . . . Power Chain Reactions . | . . . . . . . . . . . . . . . . Alert | -11 -10 -10 -9 -9 -8 -7 -7 -7 -7 -6 -6 -6 -6 -6 -6 ------- Run | Yrd Mat Min Mat Min Mat Fac Low Low Zio Pro Fac Ext Cet Arc Hub Peak Influence 727 | . 400 335 725 268 410 269 . . . . 427 727 478 241 99 Initial 406 | . . 121 130 229 104 128 . . . . 196 163 406 191 84 Average 253 | . 194 201 347 243 179 110 . . . . 162 478 461 198 85 Maximum Alert Level 3 | . 2 1 3 1 2 1 . . . . 2 3 2 1 . Low Security (%) 47 | 100 49 59 51 . 77 81 . . . . 61 5 . 80 100 Level 1 32 | . 49 40 10 100 21 18 . . . . 37 28 2 19 . Level 2 18 | . . . 37 . . . . . . . 1 59 97 . . Level 3 1 | . . . . . . . . . . . . 6 . . . Level 4 . | . . . . . . . . . . . . . . . . Level 5 . | . . . . . . . . . . . . . . . . High Security . | . . . . . . . . . . . . . . . . Max Security . | . . . . . . . . . . . . . . . . Squads Dispatched 26 | . 2 1 7 . 2 3 . . . . 5 2 . . 4 Investigation 17 | . 1 . 5 . 2 2 . . . . 3 1 . . 3 Extermination 2 | . . . . . . 1 . . . . 1 . . . . Reinforcement 5 | . 1 . 1 . . . . . . . 1 1 . . 1 Assault 2 | . . 1 1 . . . . . . . . . . . . Garrison . | . . . . . . . . . . . . . . . . Intercept . | . . . . . . . . . . . . . . . . Searches Triggered 1 | . . . . . . . . . . . 1 . . . . Construction Impeded 1 | . . . . . . . . . . . . 1 . . . Haulers Reinforced . | . . . . . . . . . . . . . . . . Active Scanning Responses . | . . . . . . . . . . . . . . . . Cargo Convoy Interrupts . | . . . . . . . . . . . . . . . . Stealth | -11 -10 -10 -9 -9 -8 -7 -7 -7 -7 -6 -6 -6 -6 -6 -6 --------- Run | Yrd Mat Min Mat Min Mat Fac Low Low Zio Pro Fac Ext Cet Arc Hub Distress Signals 21 | . 3 . 2 2 6 . . . . . 2 4 2 . . Communications Jammed . | . . . . . . . . . . . . . . . . Distress Signals . | . . . . . . . . . . . . . . . . Times Spotted 209 | . 23 19 35 5 22 13 1 5 . 13 27 23 8 4 11 Peak Tracking Total 16 | . 4 6 13 2 16 6 . 3 . 8 12 7 5 4 13 Tactical Retreats 33 | . 3 4 5 . 2 4 . 2 . 1 8 4 . . . Traps | -11 -10 -10 -9 -9 -8 -7 -7 -7 -7 -6 -6 -6 -6 -6 -6 ------- Run | Yrd Mat Min Mat Min Mat Fac Low Low Zio Pro Fac Ext Cet Arc Hub Traps Triggered 9 | . 1 . 1 . 1 1 . . . . 1 2 . . 2 Indirectly . | . . . . . . . . . . . . . . . . Trap Hack Attempts . | . . . . . . . . . . . . . . . . Triggered . | . . . . . . . . . . . . . . . . Disarmed . | . . . . . . . . . . . . . . . . Reprogrammed . | . . . . . . . . . . . . . . . . Reused . | . . . . . . . . . . . . . . . . Traps Extracted . | . . . . . . . . . . . . . . . . Installed . | . . . . . . . . . . . . . . . . Triggered 2 | . . . . . . . 2 . . . . . . . . Most Traps Carried 1 | . . 1 1 . . . . . . . . . . . . Machines | -11 -10 -10 -9 -9 -8 -7 -7 -7 -7 -6 -6 -6 -6 -6 -6 ---------- Run | Yrd Mat Min Mat Min Mat Fac Low Low Zio Pro Fac Ext Cet Arc Hub Machines Disabled 6 | . . . 1 1 3 . . . . . . 1 . . . Max in Single Turn 2 | . . . 1 1 2 . . . . . . . . . . Garrison Access 2 | . . . . . 1 . . . . . 1 . . . . Energy Cycler 1 | . . . . . . . . . . . . 1 . . . Machines Repaired . | . . . . . . . . . . . . . . . . Machines Dismantled . | . . . . . . . . . . . . . . . . Machines Sabotaged . | . . . . . . . . . . . . . . . . Overloaded Fab Kills . | . . . . . . . . . . . . . . . . Hacking | -11 -10 -10 -9 -9 -8 -7 -7 -7 -7 -6 -6 -6 -6 -6 -6 --------- Run | Yrd Mat Min Mat Min Mat Fac Low Low Zio Pro Fac Ext Cet Arc Hub Machines Accessed 63 | . 6 . 9 . 8 15 . . . . 9 12 2 . 2 Terminals 46 | . 5 . 8 . 5 9 . . . . 4 11 2 . 2 Fabricators 4 | . . . . . . 2 . . . . 2 . . . . Repair Stations 4 | . . . . . 1 1 . . . . 1 1 . . . Recycling Units 4 | . 1 . . . . 2 . . . . 1 . . . . Scanalyzers 3 | . . . 1 . 1 1 . . . . . . . . . Garrison Access 2 | . . . . . 1 . . . . . 1 . . . . Total Hacks 234 | . 19 . 32 . 28 56 . . . . 42 39 7 . 11 Successful 124 | . 10 . 8 . 16 36 . . . . 27 22 2 . 3 Failed 110 | . 9 . 24 . 12 20 . . . . 15 17 5 . 8 Catastrophic 9 | . 1 . 2 . . 2 . . . . 1 . 1 . 2 Database Lockouts . | . . . . . . . . . . . . . . . . Manual 86 | . 5 . 20 . 8 13 . . 1 . 22 7 . . 10 Terminals 182 | . 18 . 30 . 21 33 . . . . 28 34 7 . 11 Fabricators 14 | . . . . . . 9 . . . . 5 . . . . Repair Stations 15 | . . . . . 4 2 . . . . 4 5 . . . Recycling Units 9 | . 1 . . . . 5 . . . . 3 . . . . Scanalyzers 11 | . . . 2 . 2 7 . . . . . . . . . Garrison Access 3 | . . . . . 1 . . . . . 2 . . . . Terminal Hacks 67 | . 6 . 4 . 8 17 . . . . 10 17 2 . 3 Record 2 | . . . . . . . . . . . . 1 1 . . Part Schematic 4 | . . . . . . 2 . . . . 1 1 . . . Prototype ID Bank 5 | . 1 . . . . 1 . . . . 1 2 . . . Open Door 8 | . . . . . . . . . . . . 7 1 . . Branch Access Points 3 | . . . . . 1 1 . . . . . 1 . . . Emergency Access Points 1 | . . . . . . 1 . . . . . . . . . Machine Index 1 | . . . . . . 1 . . . . . . . . . Terminal Index 6 | . 1 . 1 . 1 1 . . . . 1 . . . 1 Fabricator Index 1 | . . . . . . . . . . . 1 . . . . Repair Station Index 1 | . . . . . . . . . . . . 1 . . . Recycling Unit Index 1 | . . . . . . . . . . . . . . . 1 Scanalyzer Index 1 | . . . . . 1 . . . . . . . . . . Unreport Threat 3 | . . . 1 . . 1 . . . . 1 . . . . Locate Traps 9 | . 2 . . . 2 4 . . . . . 1 . . . Surveillance Status 1 | . . . . . . . . . . . 1 . . . . Recall Investigation 2 | . . . . . . 1 . . . . 1 . . . . Hauler Manifests 4 | . 2 . . . 1 . . . . . 1 . . . . Registered Components 3 | . . . . . 1 1 . . . . 1 . . . . Zone Layout 11 | . . . 2 . 1 3 . . . . 1 3 . . 1 Fabricator Hacks 8 | . . . . . . 4 . . . . 4 . . . . Load Schematic 4 | . . . . . . 2 . . . . 2 . . . . Build 4 | . . . . . . 2 . . . . 2 . . . . Repair Station Hacks 12 | . . . . . 3 2 . . . . 4 3 . . . Scan Component 4 | . . . . . 1 1 . . . . 2 . . . . Repair 4 | . . . . . 1 1 . . . . 2 . . . . Refit 4 | . . . . . 1 . . . . . . 3 . . . Recycling Unit Hacks 5 | . 1 . . . . 3 . . . . 1 . . . . Retrieve Matter 1 | . . . . . . 1 . . . . . . . . . Retrieve Components 4 | . 1 . . . . 2 . . . . 1 . . . . Scanalyzer 9 | . . . 2 . 2 5 . . . . . . . . . Insert Component 5 | . . . 1 . 1 3 . . . . . . . . . Analyze 4 | . . . 1 . 1 2 . . . . . . . . . Garrison Access Hacks 2 | . . . . . 1 . . . . . 1 . . . . Seal Access 2 | . . . . . 1 . . . . . 1 . . . . Unauthorized Hacks 21 | . 3 . 2 . 2 5 . . . . 7 2 . . . Terminals 21 | . 3 . 2 . 2 5 . . . . 7 2 . . . Track 6 | . . . . . 1 1 . . . . 3 1 . . . Assimilate 5 | . 2 . 1 . . 1 . . . . 1 . . . . Botnet 5 | . . . . . . 2 . . . . 2 1 . . . Operators 5 | . 1 . 1 . 1 1 . . . . 1 . . . . Fabricators . | . . . . . . . . . . . . . . . . Repair Stations . | . . . . . . . . . . . . . . . . Recycling Units . | . . . . . . . . . . . . . . . . Scanalyzers . | . . . . . . . . . . . . . . . . Garrison Access . | . . . . . . . . . . . . . . . . Data Cores Recovered . | . . . . . . . . . . . . . . . . Used . | . . . . . . . . . . . . . . . . Hacking Detections 41 | . 3 . 8 . 6 12 . . . . 6 4 . . 2 Full Trace Events 17 | . 2 . 4 . 3 2 . . . . 3 1 . . 2 Feedback Events 1 | . 1 . . . . . . . . . . . . . . Corruption 1 | . 1 . . . . . . . . . . . . . . Feedback Blocked 2 | . . . . . . . . . . . 1 . . . 1 Robot Schematics Acquired . | . . . . . . . . . . . . . . . . Robots Built . | . . . . . . . . . . . . . . . . Authchips . | . . . . . . . . . . . . . . . . Time . | . . . . . . . . . . . . . . . . Total Robot Build Rating . | . . . . . . . . . . . . . . . . Part Schematics Acquired 8 | . . . 1 . 1 4 . . . . 1 1 . . . Parts Built 7 | . . . . . . 3 . . . . 4 . . . . Authchips . | . . . . . . . . . . . . . . . . Time 273 | . . . . . . 72 . . . . 201 . . . . Total Part Build Rating 31 | . . . . . . 9 . . . . 22 . . . . Parts Repaired 4 | . . . . . 1 1 . . . . 2 . . . . Time 145 | . . . . . 44 19 . . . . 82 . . . . Parts Recycled . | . . . . . . . . . . . . . . . . Recycled Matter . | . . . . . . . . . . . . . . . . Retrieved Matter . | . . . . . . . . . . . . . . . . Retrieved Components 13 | . 9 . . . . 4 . . . . . . . . . Parts Scanalyzed 5 | . . . 1 . 1 3 . . . . . . . . . Part Schematics Acquired 4 | . . . 1 . 1 2 . . . . . . . . . Parts Damaged 2 | . . . 1 . . 1 . . . . . . . . . Bothacking | -11 -10 -10 -9 -9 -8 -7 -7 -7 -7 -6 -6 -6 -6 -6 -6 ------------ Run | Yrd Mat Min Mat Min Mat Fac Low Low Zio Pro Fac Ext Cet Arc Hub Used RIF Installer . | . . . . . . . . . . . . . . . . Robots Hacked . | . . . . . . . . . . . . . . . . Non-combat . | . . . . . . . . . . . . . . . . Combat . | . . . . . . . . . . . . . . . . Robot Hacks Applied . | . . . . . . . . . . . . . . . . Relay Couplers Released . | . . . . . . . . . . . . . . . . Fabnet Peak Effective % . | . . . . . . . . . . . . . . . . Robots Rewired 13 | . . . . . . . . . . . . 13 . . . Allies Hacked . | . . . . . . . . . . . . . . . . Hacks Repelled . | . . . . . . . . . . . . . . . . Allies | -11 -10 -10 -9 -9 -8 -7 -7 -7 -7 -6 -6 -6 -6 -6 -6 -------- Run | Yrd Mat Min Mat Min Mat Fac Low Low Zio Pro Fac Ext Cet Arc Hub Total Allies 37 | . 1 4 . . . 1 . . 7 . 1 23 . . . Largest Group 15 | . 1 2 . . . 1 . . 7 7 1 15 . . . Highest-Rated Group 506 | . 10 42 . . . 10 . . 208 208 10 506 . . . Highest-Rated Ally 159 | . 10 31 . . . 10 . . 51 51 10 159 . . . Total Orders 5 | . . . . . . . . . . . . 5 . . . STAY 2 | . . . . . . . . . . . . 2 . . . AID 3 | . . . . . . . . . . . . 3 . . . Ally Attacks 208 | . . 21 . . . . . . . 46 . 141 . . . Total Damage 4756 | . . 278 . . . . . . . 915 . 3563 . . . Kills 38 | . . 3 . . . . . . . 3 . 32 . . . Allies Corrupted . | . . . . . . . . . . . . . . . . Allies Melted 1 | . . . . . . . . . . 1 . . . . . Intel | -11 -10 -10 -9 -9 -8 -7 -7 -7 -7 -6 -6 -6 -6 -6 -6 ------- Run | Yrd Mat Min Mat Min Mat Fac Low Low Zio Pro Fac Ext Cet Arc Hub Robot Analysis Total . | . . . . . . . . . . . . . . . . Derelict Logs Recovered 6 | . . 2 . . . . 1 1 1 1 . . . . . Drone Launches . | . . . . . . . . . . . . . . . . Drone Recoveries . | . . . . . . . . . . . . . . . . Decoded 0b10 Intel 5 | . . . . . . . . . . . 5 . . . . Traps 3 | . . . . . . . . . . . 3 . . . . Emergency Access 2 | . . . . . . . . . . . 2 . . . . Exploration | -11 -10 -10 -9 -9 -8 -7 -7 -7 -7 -6 -6 -6 -6 -6 -6 ------------- Run | Yrd Mat Min Mat Min Mat Fac Low Low Zio Pro Fac Ext Cet Arc Hub Turns Passed 5987 | 42 527 372 421 375 426 845 68 111 531 172 757 1058 120 87 75 Spaces Moved 9149 | 42 557 841 581 511 435 1636 180 264 1259 328 1286 880 185 49 115 Core 665 | 23 11 . . 83 52 92 . . . . . 72 168 49 115 Treads . | . . . . . . . . . . . . . . . . Legs 89 | . . . . 67 22 . . . . . . . . . . Wheels 125 | 19 106 . . . . . . . . . . . . . . Hover 1216 | . 69 . . . 361 221 . . . . . 548 17 . . Flight 7054 | . 371 841 581 361 . 1323 180 264 1259 328 1286 260 . . . Fastest Speed 34 | 50 37 37 37 37 50 34 34 34 34 34 34 40 50 50 50 Average Speed 42 | 76 48 37 37 58 66 36 34 34 34 35 37 61 51 50 50 Slowest Speed 156 | 150 120 37 40 120 120 120 34 34 34 117 40 156 63 50 50 Overloaded Moves . | . . . . . . . . . . . . . . . . Propulsion Burnouts . | . . . . . . . . . . . . . . . . Robots Hopped 51 | . . 21 . 4 . 5 2 . 1 . 16 2 . . . Cave-ins Triggered . | . . . . . . . . . . . . . . . . Exploration Rate (%) 54 | 3 72 96 48 88 38 42 37 48 81 45 28 81 81 61 20 Regions Visited 15 Branch Regions 10 Pre-discovered Areas 1 | . . 1 . . . . . . . . . . . . . Known Exits Taken 12 | . . . 1 1 1 1 1 1 1 1 1 1 1 1 . Unknown Exits Taken 3 | 1 1 1 . . . . . . . . . . . . . Scrap Searched 8 | . . 1 . 1 . . 1 2 2 1 . . . . . Spaces Dug 60 | . . 20 6 . 7 6 . 8 . 5 8 . . . . Terrain Destroyed 266 | . . 20 35 6 20 6 . 19 . 33 8 . 119 . . Melee 27 | . . . 6 . 7 6 . . . . 8 . . . . Projectile 6 | . . . . 6 . . . . . . . . . . . AOE 233 | . . 20 29 . 13 . . 19 . 33 . . 119 . . Terrain Rammed . | . . . . . . . . . . . . . . . . Walls Destroyed . | . . . . . . . . . . . . . . . . Machines Disabled . | . . . . . . . . . . . . . . . . Actions | -11 -10 -10 -9 -9 -8 -7 -7 -7 -7 -6 -6 -6 -6 -6 -6 --------- Run | Yrd Mat Min Mat Min Mat Fac Low Low Zio Pro Fac Ext Cet Arc Hub Total 10819 | 49 709 879 734 554 535 1839 180 277 1355 364 1521 1384 196 110 133 Wait 1102 | . 52 46 77 20 63 125 . 6 94 16 185 356 . 62 . Move 9038 | 41 556 800 580 504 434 1625 175 263 1256 327 1254 876 184 48 115 Hop 45 | . . 19 . 2 . 5 2 . 1 . 15 1 . . . Pick Up 38 | 1 7 1 7 1 2 7 . . 1 . 4 6 . . 1 Fast Attach 72 | 5 11 4 9 4 4 22 1 . . . 9 3 . . . Attach 35 | 1 2 1 10 1 1 7 . 2 . 1 4 3 1 . 1 Detach 26 | 1 . . 7 . 2 6 . . . 2 5 1 2 . . Swap 13 | . . . 1 . 3 1 . 2 . 2 2 1 1 . . Drop 68 | . 8 6 10 3 4 18 . . . 1 5 10 2 . 1 Fire 107 | . 73 2 9 5 3 . . 2 . 7 . . 6 . . Melee 123 | . . . 24 14 17 23 2 2 3 8 20 10 . . . Ram 2 | . . . . . 2 . . . . . . . . . . Kick . | . . . . . . . . . . . . . . . . Crush . | . . . . . . . . . . . . . . . . Escape Stasis 59 | . . . . . . . . . . . 18 26 . . 15 Rewire 91 | . . . . . . . . . . . . 91 . . . Trap . | . . . . . . . . . . . . . . . . Miscellaneous . | . . . . . . . . . . . . . . . . Route ------- -11/Scrapyard -10/Materials (discovered 3 exits: *Mat x2 / [*Min]) -10/Mines (discovered 2 exits: *Mat x2) -9/Materials (discovered 3 exits: *Mat / *Min / Sto) -9/Mines -8/Materials -7/Factory (discovered 3 exits: *Fac / *Low x2) -7/Lower Caves -7/Lower Caves -7/Zion (discovered 2 exits: Dee / *Pro) -6/Proximity Caves -6/Factory (discovered 2 exits: *Fac / *Ext) -6/Extension (discovered 2 exits: *Fac / *Cet) -6/Cetus -6/Archives -6/Hub_04(d) (discovered 1 exit: Fac) History --------- Turn | Location | Event 4 | -11/Scrapyard | Discovered new exit (range 16) 43 | -11/Scrapyard | Entered Materials 149 | -10/Materials | Discovered new exit (range 7) 316 | -10/Materials | Build established: Mutant 383 | -10/Materials | Discovered new exit (range 16) 503 | -10/Materials | Lost 3 parts (1p2n) 528 | -10/Materials | Discovered new exit (range 15) 570 | -10/Materials | Entered Mines 610 | -10/Mines | Found a hidden stash of uninstalled traps 665 | -10/Mines | Received a Rocket Launcher from a helpful Derelict 692 | -10/Mines | Learned Materials garrison access intel 778 | -10/Mines | Met a Derelict testing a Signal Generator 852 | -10/Mines | Core integrity fell below 50% 892 | -10/Mines | Discovered new exit (range 5) 899 | -10/Mines | Escorted by a lone wolf Derelict 922 | -10/Mines | Discovered new exit (range 13) 929 | -10/Mines | Learned location of Storage (-9) 942 | -10/Mines | Entered Materials 942 | -9/Materials | Evolved 2 slots: Utility x2 943 | -9/Materials | Identified exit to Storage 1078 | -9/Materials | Discovered new exit (range 11) 1236 | -9/Materials | Destroyed 17 combat bots 1249 | -9/Materials | Build established: Scavenger-Mutant 1285 | -9/Materials | Discovered new exit (range 10) 1333 | -9/Materials | Identified exit to Materials 1342 | -9/Materials | First assault squad dispatched 1363 | -9/Materials | Identified exit to Mines 1363 | -9/Materials | Entered Mines 1379 | -9/Mines | A weapon hastily lodged in a ceiling crevice suddenly fell to the ground 1385 | -9/Mines | Assembled infested the area 1507 | -9/Mines | Core integrity fell below 50% 1724 | -9/Mines | Discovered exit to Materials (range 2) 1738 | -9/Mines | Entered Materials 1738 | -8/Materials | Evolved 2 slots: Propulsion x1, Utility x1 1739 | -8/Materials | Loaded intel: 1 garrison access location 1953 | -8/Materials | Repaired Mak. Power Source 2021 | -8/Materials | Discovered new exit (range 11) 2062 | -8/Materials | Build established: Scavenger-Gladiator 2131 | -8/Materials | Core integrity fell below 50% 2161 | -8/Materials | Lost 5 parts (3n1u1w) 2164 | -8/Materials | Identified exit to Factory 2164 | -8/Materials | Entered Factory 2164 | -7/Factory | Evolved 2 slots: Utility x2 2447 | -7/Factory | Fabricated Hacking Suite (x1) 2507 | -7/Factory | Build established: Hacker-Gladiator 2510 | -7/Factory | Discovered new exit (range 10) 2606 | -7/Factory | Repaired Actuator Array 2786 | -7/Factory | Identified exit to Lower Caves 2837 | -7/Factory | Fabricated Imp. Signal Interpreter (x2) 3009 | -7/Factory | Entered Lower Caves 3022 | -7/Lower Caves | Identified exit to Lower Caves 3077 | -7/Lower Caves | Entered another Lower Caves area 3134 | -7/Lower Caves | Learned Factory terminal intel 3186 | -7/Lower Caves | Discovered new exit (range 5) 3187 | -7/Lower Caves | Identified exit to Zion 3188 | -7/Lower Caves | Entered Zion 3210 | -7/Zion | Discovered new exit (range 9) 3278 | -7/Zion | Received a hallucinogenic algorithm 3323 | -7/Zion | Identified exit to Deep Caves 3414 | -7/Zion | Gained Derelict followers 3719 | -7/Zion | Identified exit to Proximity Caves 3719 | -7/Zion | Entered Proximity Caves 3719 | -6/Proximity Caves | Accompanied by 7 allies 3762 | -6/Proximity Caves | Learned location of 1 exit from Factory 3776 | -6/Proximity Caves | Lost 3 allies 3840 | -6/Proximity Caves | Destroyed 8 combat bots 3865 | -6/Proximity Caves | Attracted the attention of an 0b10 checkpoint 3888 | -6/Proximity Caves | Discovered new exit (range 9) 3890 | -6/Proximity Caves | Identified exit to Factory 3891 | -6/Proximity Caves | Entered Factory 3891 | -6/Factory | Evolved 2 slots: Propulsion x1, Utility x1 3892 | -6/Factory | Identified exit to Factory 3893 | -6/Factory | Loaded intel: 27 terminal locations 4004 | -6/Factory | Lost 3 parts (1p1n1u) 4093 | -6/Factory | Build established: Hacker-Mutant 4141 | -6/Factory | Fabricated Mak. Power Source (x2) 4204 | -6/Factory | Repaired Chainsword 4244 | -6/Factory | Repaired Missile Launcher 4407 | -6/Factory | Found Prototype Launcher 4407 | -6/Factory | Identified Scatter Rocket Array 4417 | -6/Factory | Spotted B-75 Beast 4501 | -6/Factory | Discovered new exit (range 9) 4504 | -6/Factory | Identified exit to Extension 4591 | -6/Factory | Search patrols dispatched 4635 | -6/Factory | Fabricated Lrn. Sensor Array (x2) 4648 | -6/Factory | Entered Extension 4674 | -6/Extension | Rescued a captive Derelict 4678 | -6/Extension | Rescued a captive Derelict 4681 | -6/Extension | Rescued a captive Derelict 4682 | -6/Extension | Rescued a captive Derelict 4684 | -6/Extension | Identified exit to Cetus 4719 | -6/Extension | Rescued A7 4974 | -6/Extension | Rescued a captive Derelict 4975 | -6/Extension | Rescued a captive Derelict 4986 | -6/Extension | Rescued a captive Derelict 5134 | -6/Extension | Rescued a captive Derelict 5214 | -6/Extension | Lost 6 allies 5347 | -6/Extension | Build established: Hacker-Gladiator 5376 | -6/Extension | Extracted ID and sensor layout for unrecognized location from A7's data core 5487 | -6/Extension | Energy Cycler disabled 5487 | -6/Extension | Rescued a captive Derelict 5487 | -6/Extension | Rescued a captive Derelict 5490 | -6/Extension | Rescued a captive Derelict 5578 | -6/Extension | Lost 12 allies 5696 | -6/Extension | Discovered exit to Factory (range 10) 5706 | -6/Extension | Entered Cetus 5716 | -6/Cetus | Spotted Cetus Guard 5716 | -6/Cetus | Spotted Cetus Guard 5720 | -6/Cetus | Spotted Cetus Guard 5723 | -6/Cetus | Spotted Cetus Guard 5733 | -6/Cetus | Destroyed Cetus Guard 5733 | -6/Cetus | Destroyed Cetus Guard 5733 | -6/Cetus | Destroyed Cetus Guard 5736 | -6/Cetus | Destroyed Cetus Guard 5761 | -6/Cetus | Lost 4 parts (4n) 5803 | -6/Cetus | Discovered new exit (range 16) 5812 | -6/Cetus | Spotted Cetus Guard 5812 | -6/Cetus | Spotted Cetus Guard 5825 | -6/Cetus | Identified exit to Archives 5826 | -6/Cetus | Entered Archives 5904 | -6/Archives | Core integrity fell below 50% 5905 | -6/Archives | Unable to access archive contents 5906 | -6/Archives | Discovered new exit (range 15) 5912 | -6/Archives | Identified exit to Hub_04(d) 5913 | -6/Archives | Entered Hub_04(d) 5965 | -6/Hub_04(d) | Discovered exit to Factory (range 17) 5972 | -6/Hub_04(d) | Core integrity fell below 20% 5988 | -6/Hub_04(d) | Destroyed by C-17 Slicer with Blade Saw Last Messages --------------- >>Index(Recycling Units) No recycling units found. 05965_ ALERT: Suspicious activity at Terminal H005. Dispatching Investigation squad. 05969_ System Shield destroyed. 05969_ System corrupted by crushing effect (+5). 05969_ Knocked back. 05970_ U-05 Engineer lays Concrete. 05970_ Knocked back. 05977_ Phasing Sabre severed. 05978_ U-05 Engineer lays Concrete. 05979_ =7LUU3=I|8AWAQ8Z